bitfinex/quotes_SOLUSD_20250831
["timestamp","ask_amount","ask_price","bid_price","bid_amount"]
[1756681169574,1e-08,204.11,204.1,64.65995036]
[1756681169777,1e-08,204.11,204.1,143.35995036]
[1756681169970,1e-08,204.11,204.1,145.32280336]
[1756681170285,1e-08,204.11,204.1,179.32280336]
[1756681173165,1e-08,204.11,204.1,133.84800604]
[1756681173386,1e-08,204.11,204.1,173.8525517]
[1756681173776,1e-08,204.11,204.1,173.1925517]
[1756681173984,1e-08,204.11,204.1,199.1925517]
[1756681174369,1e-08,204.11,204.1,199.8825517]
[1756681175986,1e-08,204.11,204.1,199.1925517]
[1756681176191,1e-08,204.11,204.1,47.62559401]
[1756681176387,4.15739867,204.11,204.1,0.03]
[1756681177567,0.65000001,204.11,204.1,0.03]
[1756681177988,4.15739867,204.11,204.1,0.03]
[1756681187601,11.02063066,204.11,204.1,0.03]
[1756681187790,6.12131167,204.11,204.1,0.03]
[1756681193691,11.02063066,204.11,204.1,0.03]
[1756681197592,14.52802932,204.11,204.1,0.03]
[1756681197916,9.62871033,204.11,204.1,0.03]
[1756681198089,14.52802932,204.11,204.1,0.03]
[1756681200412,14.52802932,204.11,204.07,0.03]
[1756681200600,3.50739866,204.08,204.07,0.03]
[1756681200989,32.12169766,204.08,204.07,0.03]
[1756681202911,37.02173686,204.08,204.07,0.03]
[1756681203619,37.02173686,204.08,204.05,0.03]
[1756681204019,3.50739866,204.06,204.05,0.03]
[1756681204400,4.22739866,204.06,204.05,0.03]
[1756681204801,35.12791811,204.06,204.04,0.03]
[1756681205116,3.50739866,204.05,204.04,0.03]
[1756681205621,3.50739866,204.05,204.04,0.73]
[1756681206216,3.50739866,204.05,204.04,0.03]
[1756681207421,3.00739866,204.05,204.04,0.03]
[1756681208497,8.62815827,204.05,204.04,0.03]
[1756681209599,8.62815827,204.05,204.02,0.03]
[1756681209794,3.50739866,204.03,204.02,0.03]
[1756681210222,4.22739866,204.03,204.02,0.03]
[1756681210540,5.47217966,204.03,204.02,0.73]
[1756681210995,11.09341967,204.03,204.02,0.03]
[1756681211194,10.37341967,204.03,204.02,0.03]
[1756681212034,5.47217966,204.03,204.02,0.03]
[1756681212823,10.37341967,204.03,204.02,0.03]
[1756681213828,1.244781,204.03,204.02,0.73]
[1756681214019,3.50739866,204.06,204.03,13.59559401]
[1756681214205,3.50739866,204.04,204.03,0.7]
[1756681215620,14.345594,204.08,204.03,0.7]
[1756681215822,3.50739866,204.04,204.03,0.7]
[1756681216621,13.625594,204.08,204.03,5.6010803]
[1756681216820,39.14,204.09,204.03,5.6010803]
[1756681216821,3.50739866,204.04,204.03,4.9010803]
[1756681217034,0.72,204.09,204.03,4.9010803]
[1756681217237,14.345594,204.09,204.03,4.9010803]
[1756681217428,14.345594,204.09,204.04,0.7]
[1756681217629,3.50739866,204.05,204.04,0.7]
[1756681217831,3.50739866,204.05,204.02,0.03]
[1756681217832,0.06,204.1,204.06,4.90051945]
[1756681218018,3.50739866,204.07,204.06,4.90051945]
[1756681218427,3.50739866,204.07,204.06,5.60051945]
[1756681218835,3.50739866,204.08,204.06,5.60051945]
[1756681219058,3.50739866,204.08,204.07,14.29559401]
[1756681219242,0.06,204.1,204.07,14.29559401]
[1756681219243,3.56739866,204.1,204.08,13.59559401]
[1756681219556,0.06,204.1,204.09,14.29559401]
[1756681219924,3.56739866,204.1,204.08,13.59559401]
[1756681220122,3.50739866,204.09,204.08,13.59559401]
[1756681220335,3.50739866,204.09,204.07,13.59559401]
[1756681220542,3.50739866,204.08,204.05,13.59559401]
[1756681220845,3.50739866,204.07,204.06,0.7]
[1756681221346,0.06,204.1,204.07,13.59559401]
[1756681221521,3.50739866,204.08,204.07,4.90027931]
[1756681222128,3.50739866,204.08,204.07,5.60027931]
[1756681223522,0.06,204.1,204.07,5.60027931]
[1756681223725,3.50739866,204.09,204.08,14.29559401]
[1756681224648,3.50739866,204.09,204.08,19.19563321]
[1756681225562,3.50739866,204.09,204.08,13.59559401]
[1756681227444,3.50739866,204.09,204.08,18.49563321]
[1756681227651,3.50739866,204.09,204.08,19.19563321]
[1756681228359,0.06,204.1,204.08,19.19563321]
[1756681230763,0.06,204.09,204.08,19.19563321]
[1756681231482,0.06,204.09,204.08,13.59559401]
[1756681231843,4.28739866,204.09,204.03,13.62559401]
[1756681232144,3.50739866,204.04,204.03,0.03]
[1756681232552,0.69,204.06,204.03,0.03]
[1756681232848,3.50739866,204.04,204.03,0.03]
[1756681233567,4.19739866,204.04,204.03,0.03]
[1756681234140,9.09839846,204.04,204.03,0.03]
[1756681234364,11.06298746,204.04,204.03,0.03]
[1756681236039,7.5555888,204.04,204.03,0.03]
[1756681236374,11.06298746,204.04,204.03,0.03]
[1756681237659,49.44298746,204.04,204.03,0.03]
[1756681237864,7.01479732,204.03,204.01,0.03]
[1756681238070,33.01479732,204.0,203.99,0.03]
[1756681238262,37.9167581,204.0,203.99,0.03]
[1756681238459,38.6067581,204.0,203.99,0.03]
[1756681238854,0.69,204.0,203.99,0.03]
[1756681239061,30.19739866,204.0,203.99,0.03]
[1756681239658,26.69,204.0,203.99,0.03]
[1756681239875,4.19739866,204.0,203.99,0.03]
[1756681240050,26.69,204.0,203.99,0.03]
[1756681240256,30.19739866,204.0,203.99,0.03]
[1756681240782,29.50739866,204.0,203.99,0.03]
[1756681241266,30.19739866,204.0,203.99,0.03]
[1756681241471,29.50739866,204.0,203.99,0.03]
[1756681242567,30.19739866,204.0,203.99,0.03]
[1756681242766,33.70479732,204.0,203.99,0.03]
[1756681243069,30.19739866,204.0,203.99,0.03]
[1756681243872,32.16246966,204.0,203.99,0.03]
[1756681244068,31.47246966,204.0,203.99,0.03]
[1756681244966,29.50739866,204.0,203.99,0.03]
[1756681247154,30.19739866,204.0,203.99,0.03]
[1756681247967,38.6067581,204.0,203.99,0.03]
[1756681248678,40.5720221,204.0,203.98,0.03]
[1756681248882,41.88739866,203.99,203.98,0.03]
[1756681249057,46.78959974,203.99,203.98,0.03]
[1756681249258,49.44515274,203.99,203.98,0.03]
[1756681251070,3.50739866,203.99,203.98,0.03]
[1756681251271,3.50739866,203.99,203.98,0.7]
[1756681251480,3.50739866,204.0,203.98,0.7]
[1756681252873,3.50739866,203.99,203.98,0.7]
[1756681253072,3.50739866,203.99,203.98,0.03]
[1756681253990,43.97151964,204.02,203.98,0.03]
[1756681254285,3.50739866,203.99,203.98,0.03]
[1756681258772,47.47959974,203.99,203.98,0.03]
[1756681259479,42.57739866,203.99,203.98,0.03]
[1756681260365,3.50739866,203.99,203.98,0.03]
[1756681260566,43.95148718,204.02,203.98,0.03]
[1756681260770,3.50739866,203.99,203.98,0.03]
[1756681263688,4.18739866,203.99,203.98,0.03]
[1756681263892,9.08959974,203.99,203.98,0.03]
[1756681264096,47.44959974,203.99,203.98,0.03]
[1756681265403,41.86739866,203.99,203.98,0.03]
[1756681266500,3.50739866,203.99,203.98,0.03]
[1756681266805,4.24739866,203.99,203.98,0.03]
[1756681266991,3.56739866,203.99,203.98,0.03]
[1756681267399,0.06,203.99,203.98,0.03]
[1756681267707,3.56739866,203.99,203.98,0.03]
[1756681268199,8.46959974,203.99,203.98,0.03]
[1756681268405,3.56739866,203.99,203.98,0.03]
[1756681268701,8.46959974,203.99,203.98,0.03]
[1756681268879,9.14959974,203.99,203.98,0.03]
[1756681270014,11.11505674,203.99,203.98,0.03]
[1756681271787,7.60765808,203.99,203.98,0.03]
[1756681271984,49.47505674,203.99,203.98,0.03]
[1756681274214,5.53285566,203.99,203.98,0.03]
[1756681274507,42.60739866,203.99,203.98,0.03]
[1756681274684,47.50959974,203.99,203.98,0.03]
[1756681283810,49.47515374,203.99,203.98,0.03]
[1756681285493,53.09836633,203.99,203.98,0.03]
[1756681285693,52.39836633,203.99,203.98,0.03]
[1756681285918,50.43281233,203.99,203.98,0.03]
[1756681286720,12.09281233,203.99,203.98,0.03]
[1756681286894,50.43281233,203.99,203.98,0.03]
[1756681287299,51.11281233,203.99,203.98,0.03]
[1756681287530,53.07817233,203.99,203.98,0.03]
[1756681288019,53.03210022,203.99,203.98,0.03]
[1756681291115,50.38674022,203.99,203.98,0.03]
[1756681291322,51.06674022,203.99,203.98,0.03]
[1756681292417,53.03210022,203.99,203.98,0.03]
[1756681292996,49.40888763,203.99,203.98,0.03]
[1756681293312,53.03274336,203.99,203.98,0.03]
[1756681297517,52.35274336,203.99,203.98,0.03]
[1756681298226,45.46518228,203.99,203.98,0.73]
[1756681298400,45.46518228,203.99,203.98,0.03]
[1756681298599,50.36738336,203.99,203.98,0.03]
[1756681300120,51.04738336,203.99,203.98,0.03]
[1756681300626,50.36738336,203.99,203.98,0.03]
[1756681302245,53.01274336,203.99,203.98,0.03]
[1756681303818,10.38888763,203.99,203.98,0.03]
[1756681304036,51.07347612,203.99,203.98,0.03]
[1756681304331,51.75347612,203.99,203.98,0.03]
[1756681304829,51.75340519,203.99,203.98,0.03]
[1756681306158,49.50615488,203.99,203.98,0.03]
[1756681306450,51.75340519,203.99,203.98,0.03]
[1756681306835,55.6180457,203.99,203.98,0.03]
[1756681308052,5.6039538,203.99,203.98,0.73]
[1756681308264,12.75340519,203.99,203.98,0.03]
[1756681309758,13.43340519,203.99,203.98,0.03]
[1756681310855,9.80873928,203.99,203.98,0.03]
[1756681312166,47.42873928,203.99,203.98,0.03]
[1756681312353,48.10873928,203.99,203.98,0.03]
[1756681319545,45.86148897,203.99,203.98,0.03]
[1756681319769,48.10873928,203.99,203.98,0.03]
[1756681320738,47.42873928,203.99,203.98,0.03]
[1756681320958,1.97928789,203.99,203.98,0.03]
[1756681321242,73.42873928,203.99,203.98,0.03]
[1756681321446,74.10873928,203.99,203.98,0.03]
[1756681323768,74.10873928,203.99,203.98,0.74]
[1756681323769,1.97928789,203.99,203.98,0.74]
[1756681323968,0.01392789,203.99,203.98,0.74]
[1756681324340,0.01392789,203.99,203.98,14.33559401]
[1756681324684,0.06,204.02,203.99,2.24725031]
[1756681324886,2.30725031,204.02,204.0,0.71]
[1756681325466,0.06,204.02,204.0,0.71]
[1756681326257,0.06,204.02,204.01,4.9017205]
[1756681326573,0.06,204.02,204.0,0.71]
[1756681326784,0.06,204.02,204.0,5.61186686]
[1756681327282,0.06,204.02,204.01,0.71]
[1756681327457,0.06,204.02,203.99,0.71]
[1756681327784,65.06,204.02,203.98,0.03]
[1756681328088,64.36,204.02,203.99,0.71]
[1756681328456,69.26160829,204.02,203.99,0.71]
[1756681328754,3.50879502,204.0,203.99,0.71]
[1756681329550,3.50879502,204.0,203.98,0.03]
[1756681329876,3.50879502,203.99,203.98,0.03]
[1756681332078,10.3761641,203.99,203.98,0.03]
[1756681332578,11.0761641,203.99,203.98,0.03]
[1756681335359,26.0,203.97,203.95,0.2]
[1756681335565,41.78879502,203.96,203.95,0.2]
[1756681335868,47.39171716,203.96,203.95,0.2]
[1756681336267,26.0,203.94,203.93,0.03]
[1756681336473,75.37396876,203.94,203.89,0.2]
[1756681336677,33.01759004,203.9,203.89,0.2]
[1756681336997,71.29759004,203.9,203.89,0.2]
[1756681337211,45.99759004,203.9,203.89,0.2]
[1756681337369,3.50879502,203.85,203.83,0.71]
[1756681337562,3.50879502,203.84,203.83,0.71]
[1756681337759,3.50879502,203.84,203.74,12.27040919]
[1756681337760,38.28,203.85,203.73,2.55986832]
[1756681337989,38.28,203.85,203.81,0.71]
[1756681338291,43.18570037,203.85,203.81,0.71]
[1756681338467,57.93460037,203.85,203.81,0.71]
[1756681339063,3.50879502,203.82,203.81,0.71]
[1756681340388,8.41514488,203.82,203.79,0.71]
[1756681340583,3.50879502,203.8,203.76,13.59559401]
[1756681340781,3.50879502,203.79,203.76,13.59559401]
[1756681340981,43.20609555,203.83,203.76,13.59559401]
[1756681341290,43.20609555,203.83,203.77,0.71]
[1756681341474,3.50879502,203.79,203.77,0.71]
[1756681343396,3.50879502,203.79,203.78,0.71]
[1756681344595,38.3,203.83,203.78,9.12596262]
[1756681344768,3.85627804,203.91,203.78,9.12596262]
[1756681344769,38.3,203.86,203.81,3.50879502]
[1756681344971,3.50879502,203.87,203.82,4.21879502]
[1756681345168,3.50879502,203.85,203.83,0.71]
[1756681345470,3.50879502,203.85,203.8,3.50879502]
[1756681345670,3.50879502,203.85,203.84,0.71]
[1756681347109,3.50879502,203.85,203.82,0.71]
[1756681347279,3.50879502,203.85,203.83,0.71]
[1756681347594,14.748175,203.86,203.83,0.71]
[1756681347789,14.748175,203.86,203.82,3.50879502]
[1756681347790,23.1623134,203.86,203.82,3.50879502]
[1756681347991,23.1623134,203.86,182.44,11.0]
[1756681347992,3.50879502,203.83,203.77,0.71]
[1756681348176,3.50879502,203.81,203.77,0.71]
[1756681348381,3.50879502,203.82,203.77,4.21879502]
[1756681348575,18.95914502,203.82,203.77,4.21879502]
[1756681348999,18.95914502,203.82,203.78,0.71]
[1756681349193,18.25914502,203.82,203.78,0.71]
[1756681349495,18.25914502,203.82,203.77,3.50879502]
[1756681349687,18.25914502,203.82,203.79,0.71]
[1756681350107,23.8654535,203.82,203.77,4.21879502]
[1756681350280,0.7,203.81,203.77,4.21879502]
[1756681350482,17.80438902,203.81,203.77,0.71]
[1756681351301,3.50879502,203.8,203.77,0.71]
[1756681351701,3.50879502,203.8,203.76,3.50879502]
[1756681351904,4.20879502,203.8,203.76,3.50879502]
[1756681352104,0.67,203.79,203.74,0.91]
[1756681352279,4.17879502,203.79,203.74,4.41879502]
[1756681352989,18.93132102,203.79,203.74,4.41879502]
[1756681353190,0.67,203.78,203.74,4.41879502]
[1756681353392,0.67,203.77,203.74,0.2]
[1756681354002,6.298895,203.77,203.74,0.2]
[1756681354409,5.628895,203.77,203.74,0.2]
[1756681354703,6.298895,203.77,203.74,0.2]
[1756681355280,5.628895,203.77,203.74,0.2]
[1756681355499,4.17879502,203.79,203.74,3.70879502]
[1756681355705,3.508795,203.78,203.74,4.39879502]
[1756681355891,4.178795,203.78,203.74,4.39879502]
[1756681356100,4.178795,203.78,203.74,0.2]
[1756681356101,26.0,203.76,203.74,0.2]
[1756681356285,67.80879502,203.75,203.74,0.2]
[1756681356481,68.47879502,203.75,203.74,0.2]
[1756681357409,47.35670913,203.75,203.71,0.03]
[1756681357584,29.50879502,203.72,203.71,0.03]
[1756681357906,68.14879502,203.72,203.71,0.03]
[1756681358208,68.81879502,203.72,203.71,0.03]
[1756681358505,30.17879502,203.72,203.71,0.03]
[1756681358710,68.81879502,203.72,203.71,0.03]
[1756681358914,30.17879502,203.72,203.71,0.03]
[1756681359091,68.81879502,203.72,203.71,0.03]
[1756681359414,68.14879502,203.72,203.71,0.03]
[1756681359910,29.50879502,203.72,203.71,0.03]
[1756681360098,38.64,203.72,203.71,0.72]
[1756681360791,38.64,203.72,203.71,0.03]
[1756681361805,47.05749323,203.72,203.71,0.03]
[1756681362587,42.14879502,203.72,203.71,0.03]
[1756681362893,42.838795,203.72,203.71,0.03]
[1756681364320,4.198795,203.72,203.71,0.03]
[1756681364621,38.6,203.74,203.71,0.72]
[1756681364789,5.577963,203.73,203.71,0.03]
[1756681364994,6.247963,203.73,203.71,0.03]
[1756681365195,4.17879502,203.72,203.71,0.03]
[1756681365612,0.67,203.72,203.71,0.03]
[1756681365816,4.17879502,203.72,203.71,0.03]
[1756681366121,3.50879502,203.72,203.71,0.03]
[1756681366904,10.38536823,203.72,203.71,0.03]
[1756681367108,11.05536823,203.72,203.71,0.03]
[1756681369021,6.14667002,203.72,203.71,0.03]
[1756681369611,44.68667002,203.72,203.71,0.03]
[1756681369937,1.967875,203.72,203.71,0.03]
[1756681370122,31.57818993,203.75,203.71,0.72]
[1756681370325,0.06,203.74,203.71,0.72]
[1756681370506,3.50879502,203.72,203.71,0.03]
[1756681370821,42.71879502,203.72,203.71,0.03]
[1756681371500,44.68667002,203.72,203.71,0.03]
[1756681372407,49.59536823,203.72,203.71,0.03]
[1756681372602,11.05536823,203.72,203.71,0.03]
[1756681372804,75.59536823,203.72,203.71,0.03]
[1756681373733,49.59536823,203.72,203.71,0.03]
[1756681378738,11.05536823,203.72,203.71,0.03]
[1756681379033,48.88536823,203.72,203.71,0.03]
[1756681379216,49.55536823,203.72,203.71,0.03]
[1756681379625,56.65251176,203.72,203.71,1e-08]
[1756681379829,26.0,203.7,203.68,0.03]
[1756681380039,68.96779464,203.69,203.68,0.03]
[1756681380249,69.55879502,203.69,203.68,0.03]
[1756681380403,30.25774565,203.69,203.68,0.03]
[1756681380610,78.15596184,203.69,203.68,0.03]
[1756681380927,78.15909622,203.69,203.68,0.03]
[1756681381270,109.4148444,203.69,203.66,0.03]
[1756681381553,3.50879502,203.67,203.66,1e-08]
[1756681381752,46.67934925,203.67,203.66,1e-08]
[1756681381968,26.0,203.64,203.54,0.71]
[1756681382130,3.50879502,203.59,203.55,0.71]
[1756681382468,26.0,203.55,203.46,0.71]
[1756681382676,26.0,203.55,203.36,20.0]
[1756681382677,3.50879502,203.52,203.47,0.71]
[1756681382965,39.84,203.51,203.47,0.71]
[1756681383148,39.84,203.51,203.47,0.21]
[1756681383354,14.773231,203.53,203.44,11.29559401]
[1756681383555,26.0,203.56,203.44,16.21096943]
[1756681383783,26.0,203.56,203.53,3.50879502]
[1756681383784,41.12,203.55,203.53,3.50879502]
[1756681383950,55.890685,203.55,203.44,28.49960489]
[1756681384448,55.890685,203.55,203.41,2.56402021]
[1756681384449,26.0,203.52,203.41,2.56402021]
[1756681384643,41.22,203.51,203.45,3.50879502]
[1756681384964,14.774686,203.51,203.48,3.50879502]
[1756681385146,12.27818299,203.62,203.41,4.91612573]
[1756681385147,41.24,203.56,203.5,3.50879502]
[1756681385461,3.50879502,203.54,203.5,0.71]
[1756681385663,55.4,203.69,203.53,3.50879502]
[1756681385838,55.4,203.69,203.44,26.0]
[1756681385839,4.916126,203.58,203.54,14.30559401]
[1756681386040,26.0,203.54,203.47,0.71]
[1756681386266,26.0,203.54,203.48,3.50879502]
[1756681386584,14.77214,203.54,203.53,22.01766962]
[1756681386744,45.02879502,203.6,203.53,22.72766962]
[1756681386938,13.595594,203.6,203.55,3.50879502]
[1756681387137,13.595594,203.6,203.45,46.28773504]
[1756681387341,29.50879502,203.57,203.51,0.71]
[1756681387635,26.67,203.56,203.49,17.81438903]
[1756681387962,45.04879502,203.55,203.5,3.50879502]
[1756681388266,3.50879502,203.54,203.49,3.50879502]
[1756681388446,3.50879502,203.54,203.5,0.71]
[1756681388975,3.50879502,203.53,203.47,14.30559401]
[1756681389144,41.54,203.55,203.48,3.50879502]
[1756681389467,41.54,203.55,203.5,3.50879502]
[1756681389771,67.48,203.57,203.53,3.50879502]
[1756681389971,41.48,203.57,203.53,0.71]
[1756681390175,3.50879502,203.56,203.51,4.21879502]
[1756681390469,3.50879502,203.54,203.48,0.03]
[1756681390661,43.10438902,203.6,203.52,3.50879502]
[1756681390662,13.595594,203.6,203.52,3.50879502]
[1756681390860,0.67,203.62,203.55,3.50879502]
[1756681391081,0.67,203.62,203.56,3.50879502]
[1756681391249,3.50879502,203.61,203.55,5.62278983]
[1756681391448,3.50879502,203.6,203.55,0.71]
[1756681391657,0.67,203.62,203.55,9.13158595]
[1756681391869,3.50879502,203.6,203.55,9.13158595]
[1756681392067,3.50879502,203.59,203.54,13.59559401]
[1756681392369,3.50879502,203.59,203.54,0.71]
[1756681392564,26.0,203.62,203.56,17.10438903]
[1756681392768,26.0,203.62,203.57,4.21879502]
[1756681392969,29.50879502,203.62,203.57,4.21879502]
[1756681393270,41.56,203.65,203.58,17.81438903]
[1756681393568,3.50879502,203.62,203.56,4.91253641]
[1756681393768,3.50879502,203.62,203.57,17.81438903]
[1756681393972,3.50879502,203.61,203.57,14.30559401]
[1756681394171,3.50879502,203.62,203.57,17.10438903]
[1756681394373,3.50879502,203.62,203.57,17.81438903]
[1756681394868,3.50879502,203.62,203.58,0.71]
[1756681395071,3.50879502,203.62,203.51,12.28383926]
[1756681395072,3.50879502,203.6,203.56,3.50879502]
[1756681395271,3.50879502,203.58,203.52,4.91352201]
[1756681395471,3.50879502,203.57,203.53,13.59559401]
[1756681395675,3.50879502,203.56,203.51,3.50879502]
[1756681395876,3.50879502,203.56,203.51,0.71]
[1756681396174,3.50879502,203.53,203.48,3.53879502]
[1756681396576,3.50879502,203.52,203.48,13.62559401]
[1756681396760,3.50879502,203.53,203.48,4.24879502]
[1756681397084,0.67,203.52,203.48,0.03]
[1756681397380,3.50879502,203.49,203.48,0.03]
[1756681397580,3.50879502,203.5,203.48,0.03]
[1756681397967,5.64311434,203.5,203.48,0.03]
[1756681398683,6.31311434,203.5,203.48,0.03]
[1756681399067,26.67,203.52,203.48,0.03]
[1756681399379,31.64311434,203.51,203.48,0.03]
[1756681399680,32.31311434,203.51,203.48,0.03]
[1756681400057,4.05020443,203.67,203.49,5.64311434]
[1756681400058,0.67,203.54,203.49,5.64311434]
[1756681400264,26.0,203.53,203.49,5.64311434]
[1756681400776,6.31311434,203.52,203.48,0.03]
[1756681401082,32.31311434,203.53,203.48,0.74]
[1756681401258,32.31311434,203.53,203.48,0.03]
[1756681401459,32.31311434,203.53,203.48,5.67311434]
[1756681402576,5.64311434,203.52,203.48,0.03]
[1756681402770,26.67,203.53,203.48,0.03]
[1756681402968,6.31311434,203.52,203.48,0.03]
[1756681403361,30.91331859,203.53,203.48,0.03]
[1756681403362,6.31311434,203.51,203.48,0.03]
[1756681404573,0.67,203.5,203.48,0.03]
[1756681405083,6.31311434,203.52,203.48,0.03]
[1756681405386,6.31311434,203.53,203.48,5.67311434]
[1756681405883,5.584074,203.57,203.5,5.64311434]
[1756681406093,41.91,203.56,203.48,0.03]
[1756681406390,5.64311434,203.54,203.48,0.03]
[1756681406777,6.31311434,203.54,203.48,5.67311434]
[1756681406975,6.31311434,203.54,203.49,5.64311434]
[1756681407297,0.67,203.53,203.49,10.55735204]
[1756681407461,5.64311434,203.54,203.49,10.55735204]
[1756681407663,0.67,203.53,203.48,5.67311434]
[1756681408082,0.67,203.53,203.48,10.5875641]
[1756681408479,0.67,203.53,203.49,5.64311434]
[1756681409185,6.31311434,203.52,203.48,0.03]
[1756681409568,5.64311434,203.53,203.48,4.94443124]
[1756681409767,6.31311434,203.53,203.48,4.94443124]
[1756681409966,5.64311434,203.53,203.48,4.94443124]
[1756681410170,6.31311434,203.52,203.48,0.03]
[1756681410569,6.31311434,203.51,203.48,0.03]
[1756681411291,6.31311434,203.5,203.48,0.03]
[1756681411778,0.67,203.49,203.48,0.03]
[1756681412088,26.0,203.51,203.48,0.03]
[1756681412466,31.64311434,203.51,203.48,0.03]
[1756681412665,0.66,203.5,203.48,0.03]
[1756681412960,4.9130392,203.54,203.48,0.03]
[1756681413263,0.66,203.51,203.48,0.03]
[1756681413688,0.66,203.5,203.48,0.03]
[1756681413998,6.30311434,203.5,203.48,0.03]
[1756681414193,0.66,203.49,203.48,0.03]
[1756681414568,5.64311434,203.51,203.48,0.03]
[1756681414773,32.30311434,203.52,203.48,0.03]
[1756681414965,0.66,203.51,203.48,0.03]
[1756681415570,0.66,203.5,203.48,0.03]
[1756681417091,14.772867,203.54,203.5,13.59559401]
[1756681417305,15.432867,203.54,203.49,5.64311434]
[1756681417589,0.06,203.56,203.49,4.91413669]
[1756681417590,6.30311434,203.53,203.49,4.91413669]
[1756681417768,0.66,203.52,203.48,0.03]
[1756681417970,3.52704293,203.5,203.48,0.03]
[1756681418277,0.66,203.52,203.48,0.03]
[1756681418482,0.66,203.49,203.48,0.03]
[1756681418871,0.66,203.52,203.48,0.03]
[1756681419095,0.66,203.52,203.48,3.55704293]
[1756681419291,0.66,203.54,203.48,5.64439027]
[1756681419513,0.66,203.54,203.49,17.12263694]
[1756681419884,4.18704293,203.54,203.49,17.12263694]
[1756681420607,0.06,203.56,203.53,3.52704293]
[1756681420792,0.06,203.56,203.55,17.12263694]
[1756681421297,0.06,203.56,203.55,22.73543477]
[1756681421791,0.66,203.68,203.6,13.59559401]
[1756681421992,6.29338217,203.68,203.63,5.63338217]
[1756681422183,0.66,203.67,203.63,5.63338217]
[1756681422781,0.66,203.67,203.62,19.22897618]
[1756681422973,6.29338217,203.67,203.62,13.59559401]
[1756681423173,6.29338217,203.66,203.62,13.59559401]
[1756681423383,5.63338217,203.66,203.62,13.59559401]
[1756681423592,6.29338217,203.68,203.63,5.63338217]
[1756681423792,5.63338217,203.72,203.66,5.63338217]
[1756681423985,40.92,203.74,203.71,5.63338217]
[1756681423986,0.06,203.74,203.71,5.63338217]
[1756681424192,0.06,203.74,203.72,5.63338217]
[1756681424676,0.06,203.74,203.69,13.59559401]
[1756681424875,5.69338217,203.74,203.69,13.59559401]
[1756681425075,0.66,203.73,203.69,13.59559401]
[1756681425395,6.29338217,203.72,203.68,13.59559401]
[1756681425583,5.63338217,203.73,203.68,19.22897618]
[1756681425781,0.06,203.74,203.69,5.63338217]
[1756681426006,5.69338217,203.74,203.69,5.63338217]
[1756681426173,6.35338217,203.74,203.69,5.63338217]
[1756681426981,0.72,203.74,203.7,5.63338217]
[1756681427297,0.06,203.74,203.7,10.54252877]
[1756681427504,0.06,203.74,203.71,5.63338217]
[1756681427505,0.72,203.74,203.71,5.63338217]
[1756681427680,0.06,203.74,203.72,5.63338217]
[1756681427880,0.06,203.74,203.73,5.63338217]
[1756681428097,0.06,203.74,203.71,19.22897618]
[1756681428605,0.66,203.73,203.64,34.7]
[1756681428780,6.29338217,203.73,203.68,5.63338217]
[1756681429096,0.66,203.73,203.68,5.63338217]
[1756681429305,0.06,203.74,203.71,5.63338217]
[1756681429687,0.06,203.74,203.71,10.54222556]
[1756681429888,0.06,203.74,203.71,4.90884339]
[1756681430083,0.06,203.74,203.7,18.50477281]
[1756681430795,0.72,203.74,203.7,18.50477281]
[1756681432418,6.29338217,203.73,203.67,13.59559401]
[1756681432610,6.29338217,203.73,203.68,5.63338217]
[1756681432919,0.66,203.73,203.69,5.63338217]
[1756681433097,0.66,203.72,203.69,5.63338217]
[1756681433612,0.66,203.72,203.68,5.63338217]
[1756681434388,0.66,203.71,203.68,5.63338217]